[Event "Czech Open Rapid G1 2024"]
[Site "Pardubice"]
[Date "2024.07.18"]
[Round "4.21"]
[White "Berin, Artem"]
[Black "Kastner, Oldrich"]
[Result "1-0"]
[Annotator "RC"]
[ECO "E40"]
[WhiteElo "2234"]
[BlackElo "2004"]
[PlyCount "85"]
[EventDate "2024.07.16"]
[EventType "swiss"]
[EventCountry "CZE"]
[SourceTitle "playchess.com"]
[Source "ChessBase"]
[SourceQuality "1"]
[TimeControl "1200+10"]

1. d4 {[%emt 0:00:02]} Nf6 {[%emt 0:00:04]} 2. c4 {[%emt 0:00:01]} e6 {[%emt 0:00:03]} 3. Nc3 {[%emt 0:00:02]} Bb4 {[%emt 0:00:04]} 4. e3 {[%emt 0:00:01]} O-O {[%emt 0:00:42]} 5. Bd3 {[%emt 0:00:03]} d6 {[%emt 0:01:01]} 6. Nf3 {[%emt 0:00:25]} Nbd7 {[%emt 0:00:22]} 7. O-O {[%emt 0:00:56]} Bxc3 {[%emt 0:00:38]} 8. bxc3 {[%emt 0:00:03]} e5 {[%emt 0:00:15]} 9. e4 {[%emt 0:00:04]} Re8 {[%emt 0:00:25]} 10. Re1 {[%emt 0:00:06]} c5 {[%emt 0:01:00]} 11. d5 {[%emt 0:00:37]} h6 {[%emt 0:00:44]} 12. a4 {[%emt 0:00:11]} Qa5 {[%emt 0:00:33]} 13. Qc2 {[%emt 0:00:37]} Nf8 {[%emt 0:02:30]} 14. Nd2 {[%emt 0:00:19]} Ng6 {[%emt 0:00:47]} 15. Nb3 {[%emt 0:00:30]} Qa6 {[%emt 0:00:32]} 16. a5 {[%emt 0:00:17]} Bd7 {[%emt 0:00:24]} 17. h3 {[%emt 0:01:45]} b6 {[%emt 0:01:17]} 18. axb6 {[%emt 0:00:46]} Qxb6 {[%emt 0:00:06]} 19. Na5 {[%emt 0:02:46]} Reb8 {[%emt 0:02:36]} 20. Kh2 {[%emt 0:01:48]} Qc7 {[%emt 0:00:51]} 21. Be3 {[%emt 0:00:25]} Kh7 {[%emt 0:00:53]} 22. Ra2 {[%emt 0:00:20]} Rb6 {[%emt 0:00:27]} 23. Rea1 {[%emt 0:00:22]} Rab8 {[%emt 0:00:23]} 24. Qc1 {[%emt 0:01:02]} a6 {[%emt 0:00:44]} 25. Bc2 {[%emt 0:00:39]} Nh5 {[%emt 0:00:34]} 26. Ba4 {[%emt 0:02:31]} Bxa4 {[%emt 0:02:07]} 27. Rxa4 {[%emt 0:00:02]} Ne7 {[%emt 0:00:27]} 28. R4a2 {[%emt 0:00:16]} Qd7 {[%emt 0:00:47]} 29. g3 {[%emt 0:00:24]} Nf6 {[%emt 0:00:29]} 30. Qc2 {[%emt 0:00:23]} Qc8 {[%emt 0:00:13]} 31. Bc1 {[%emt 0:00:58]} Nh5 {[%emt 0:00:52]} 32. f4 {[%emt 0:00:41]} exf4 {[%emt 0:00:21]} 33. gxf4 {[%emt 0:00:04]} g6 {[%emt 0:01:06]} 34. Be3 {[%emt 0:01:44]} Kg7 {[%emt 0:00:04]} 35. Rg1 {[%emt 0:00:08]} Nf6 {[%emt 0:00:27]} 36. Bc1 {[%emt 0:01:52]} Qd8 {[%emt 0:00:15]} 37. Qd3 {[%emt 0:00:21]} Nd7 {[%emt 0:00:20]} 38. Qe3 {[%emt 0:00:12]} Qc7 {[%emt 0:00:14]} 39. f5 {[%emt 0:00:56]} Rh8 {[%emt 0:00:38]} 40. Qg3 {[%emt 0:00:09]} Ne5 {[%emt 0:00:11]} 41. Bf4 {[%emt 0:00:06]} g5 {[%emt 0:00:12]} 42. f6+ {[%emt 0:00:08]} Kxf6 {[%emt 0:00:04]} 43. Bxg5+ {[%emt 0:00:01]} 1-0

[Event "Czech Open Rapid G1 2024"]
[Site "Pardubice"]
[Date "2024.07.18"]
[Round "4.22"]
[White "Tesar, Jan"]
[Black "Bouska, Jiri"]
[Result "0-1"]
[Annotator "RC"]
[ECO "E06"]
[WhiteElo "1929"]
[BlackElo "2222"]
[PlyCount "78"]
[EventDate "2024.07.16"]
[EventType "swiss"]
[EventCountry "CZE"]
[SourceTitle "playchess.com"]
[Source "ChessBase"]
[SourceQuality "1"]
[TimeControl "1200+10"]

1. d4 {[%emt 0:01:14]} d5 {[%emt 0:00:02]} 2. Nf3 {[%emt 0:00:02]} Nf6 {[%emt 0:00:02]} 3. g3 {[%emt 0:00:01]} e6 {[%emt 0:00:02]} 4. Bg2 {[%emt 0:00:01]} Be7 {[%emt 0:00:01]} 5. O-O {[%emt 0:00:02]} O-O {[%emt 0:00:03]} 6. c4 {[%emt 0:00:01]} c6 {[%emt 0:00:01]} 7. Qc2 {[%emt 0:00:23]} b6 {[%emt 0:00:04]} 8. Ne5 {[%emt 0:00:32]} Bb7 {[%emt 0:01:23]} 9. Bf4 {[%emt 0:06:09]} Nbd7 10. cxd5 {[%emt 0:00:00]} Nxe5 {[%emt 0:04:51]} 11. dxe5 {[%emt 0:00:00]} Nxd5 {[%emt 0:00:06]} 12. Rd1 {[%emt 0:00:00]} Qc8 {[%emt 0:03:22]} 13. Nd2 {[%emt 0:00:00]} c5 {[%emt 0:02:47]} 14. Ne4 {[%emt 0:00:00]} Qc7 {[%emt 0:05:11]} 15. a3 {[%emt 0:01:17]} Rad8 {[%emt 0:00:40]} 16. Rac1 {[%emt 0:00:16]} Qb8 {[%emt 0:00:24]} 17. Rd2 {[%emt 0:03:58]} Nxf4 {[%emt 0:02:29]} 18. gxf4 {[%emt 0:00:15]} Rxd2 {[%emt 0:00:17]} 19. Qxd2 {[%emt 0:00:03]} Rd8 {[%emt 0:00:19]} 20. Qe3 {[%emt 0:00:04]} Qa8 {[%emt 0:00:30]} 21. h3 {[%emt 0:04:52]} Rd4 {[%emt 0:00:09]} 22. f3 {[%emt 0:00:03]} Qd8 {[%emt 0:00:07]} 23. Kh2 {[%emt 0:00:31]} Rd1 {[%emt 0:00:40]} 24. Rxd1 {[%emt 0:00:59]} Qxd1 {[%emt 0:00:02]} 25. Qd2 {[%emt 0:00:18]} Qxd2 {[%emt 0:00:06]} 26. Nxd2 {[%emt 0:00:02]} b5 {[%emt 0:00:29]} 27. e4 {[%emt 0:00:26]} c4 {[%emt 0:00:03]} 28. Bf1 {[%emt 0:00:08]} Bc5 {[%emt 0:00:05]} 29. Kg3 {[%emt 0:00:25]} Bd4 {[%emt 0:00:03]} 30. a4 {[%emt 0:00:08]} Bxb2 {[%emt 0:00:24]} 31. axb5 {[%emt 0:00:03]} c3 {[%emt 0:00:01]} 32. Nb3 {[%emt 0:00:04]} c2 {[%emt 0:00:07]} 33. Bc4 {[%emt 0:00:21]} Kf8 {[%emt 0:00:31]} 34. h4 {[%emt 0:00:25]} Ke7 {[%emt 0:00:06]} 35. h5 {[%emt 0:00:05]} h6 {[%emt 0:00:02]} 36. Kg4 {[%emt 0:00:16]} c1=Q {[%emt 0:00:07]} 37. Nxc1 {[%emt 0:00:05]} Bxc1 {[%emt 0:00:02]} 38. f5 {[%emt 0:00:05]} Bb2 {[%emt 0:00:12]} 39. f4 {[%emt 0:00:03]} Bxe4 {[%emt 0:00:02]} 0-1

[Event "Czech Open Rapid G1 2024"]
[Site "Pardubice"]
[Date "2024.07.18"]
[Round "4.24"]
[White "Park, Inchan"]
[Black "Hosticka, Frantisek"]
[Result "0-1"]
[Annotator "RC"]
[ECO "A46"]
[WhiteElo "1856"]
[BlackElo "2062"]
[PlyCount "82"]
[EventDate "2024.07.16"]
[EventType "swiss"]
[EventCountry "CZE"]
[SourceTitle "playchess.com"]
[Source "ChessBase"]
[SourceQuality "1"]
[TimeControl "1200+10"]

1. d4 {[%emt 0:00:03]} Nf6 {[%emt 0:00:19]} 2. Nf3 {[%emt 0:00:03]} e6 {[%emt 0:00:06]} 3. g3 {[%emt 0:00:02]} b5 {[%emt 0:00:11]} 4. Bg2 {[%emt 0:00:08]} Bb7 {[%emt 0:00:04]} 5. O-O {[%emt 0:00:05]} c5 {[%emt 0:00:03]} 6. a4 {[%emt 0:02:15]} a6 {[%emt 0:00:21]} 7. c3 {[%emt 0:00:19]} cxd4 {[%emt 0:00:17]} 8. cxd4 {[%emt 0:00:03]} Be7 {[%emt 0:00:18]} 9. Re1 {[%emt 0:00:32]} O-O {[%emt 0:00:57]} 10. Nbd2 {[%emt 0:00:57]} Qb6 {[%emt 0:04:53]} 11. a5 {[%emt 0:04:43]} Qc7 {[%emt 0:02:00]} 12. e4 {[%emt 0:00:46]} d6 {[%emt 0:01:15]} 13. h3 {[%emt 0:05:30]} Nbd7 {[%emt 0:01:26]} 14. g4 {[%emt 0:01:14]} Rac8 {[%emt 0:02:25]} 15. g5 {[%emt 0:00:39]} Nh5 {[%emt 0:00:49]} 16. Nf1 {[%emt 0:01:27]} Qc2 {[%emt 0:01:17]} 17. Qxc2 {[%emt 0:00:40]} Rxc2 {[%emt 0:00:01]} 18. Ne3 {[%emt 0:00:01]} Rc7 {[%emt 0:03:23]} 19. Nd1 {[%emt 0:00:58]} Rfc8 {[%emt 0:01:08]} 20. Bd2 {[%emt 0:00:19]} Nf8 {[%emt 0:00:37]} 21. Bf1 {[%emt 0:01:20]} Ng6 {[%emt 0:00:31]} 22. Bb4 {[%emt 0:01:02]} f6 {[%emt 0:00:57]} 23. h4 {[%emt 0:00:19]} fxg5 {[%emt 0:00:26]} 24. Nxg5 {[%emt 0:00:30]} Nxh4 {[%emt 0:00:08]} 25. Nxe6 {[%emt 0:00:02]} Nf3+ {[%emt 0:00:02]} 26. Kh1 {[%emt 0:00:05]} Nxe1 {[%emt 0:00:04]} 27. Nxc7 {[%emt 0:00:02]} Bxe4+ {[%emt 0:00:24]} 28. Kh2 {[%emt 0:00:26]} Nf3+ {[%emt 0:00:01]} 29. Kh3 {[%emt 0:00:09]} Rxc7 {[%emt 0:00:02]} 30. Nc3 {[%emt 0:00:11]} Bb7 {[%emt 0:00:08]} 31. Rd1 {[%emt 0:00:16]} g6 {[%emt 0:00:18]} 32. d5 {[%emt 0:00:06]} Ng5+ {[%emt 0:00:07]} 33. Kg4 {[%emt 0:00:07]} Nf7 {[%emt 0:00:06]} 34. Be2 {[%emt 0:00:14]} Ne5+ {[%emt 0:00:04]} 35. Kh3 {[%emt 0:00:11]} Nf4+ {[%emt 0:00:10]} 36. Kg3 {[%emt 0:00:00]} Nxe2+ 37. Nxe2 {[%emt 0:00:01]} h5 {[%emt 0:00:27]} 38. Nf4 {[%emt 0:00:06]} h4+ {[%emt 0:00:09]} 39. Kg2 {[%emt 0:00:02]} Rc2 {[%emt 0:00:09]} 40. Bc3 {[%emt 0:00:12]} g5 {[%emt 0:00:07]} 41. Ne6 {[%emt 0:00:13]} Nc4 {[%emt 0:00:21]} 0-1

[Event "Czech Open Rapid G1 2024"]
[Site "Pardubice"]
[Date "2024.07.18"]
[Round "4.25"]
[White "Jun, Rudolf"]
[Black "Sichrovsky, Tomas"]
[Result "0-1"]
[Annotator "RC"]
[ECO "B10"]
[WhiteElo "2232"]
[BlackElo "1933"]
[PlyCount "192"]
[EventDate "2024.07.16"]
[EventType "swiss"]
[EventCountry "CZE"]
[SourceTitle "playchess.com"]
[Source "ChessBase"]
[SourceQuality "1"]
[TimeControl "1200+10"]

1. e4 {[%emt 0:00:03]} c6 {[%emt 0:00:01]} 2. b3 {[%emt 0:00:14]} d5 {[%emt 0:00:03]} 3. exd5 {[%emt 0:00:02]} cxd5 {[%emt 0:00:01]} 4. Bb2 {[%emt 0:00:02]} Nf6 {[%emt 0:00:02]} 5. Nf3 {[%emt 0:00:05]} Nc6 {[%emt 0:00:02]} 6. Be2 {[%emt 0:00:13]} Bg4 {[%emt 0:00:09]} 7. O-O {[%emt 0:00:14]} e6 {[%emt 0:00:03]} 8. d3 {[%emt 0:00:26]} Bd6 {[%emt 0:00:55]} 9. Nbd2 {[%emt 0:00:04]} Qc7 {[%emt 0:00:34]} 10. h3 {[%emt 0:00:06]} Bh5 {[%emt 0:00:02]} 11. c4 {[%emt 0:00:27]} Rd8 {[%emt 0:01:49]} 12. cxd5 {[%emt 0:00:24]} Nxd5 {[%emt 0:00:09]} 13. Ne4 {[%emt 0:00:54]} O-O {[%emt 0:04:27]} 14. Rc1 {[%emt 0:03:14]} Nf4 {[%emt 0:02:57]} 15. Nd4 {[%emt 0:00:52]} Bxe2 {[%emt 0:01:33]} 16. Nxe2 {[%emt 0:00:38]} Nxd3 {[%emt 0:00:47]} 17. Nxd6 {[%emt 0:01:52]} Qxd6 {[%emt 0:02:12]} 18. Rb1 {[%emt 0:01:07]} Nxb2 {[%emt 0:00:25]} 19. Qxd6 {[%emt 0:00:05]} Rxd6 {[%emt 0:00:01]} 20. Rxb2 {[%emt 0:00:01]} Rfd8 {[%emt 0:00:11]} 21. Rfb1 {[%emt 0:02:22]} g6 {[%emt 0:01:11]} 22. f3 {[%emt 0:00:45]} Rd1+ {[%emt 0:00:43]} 23. Rxd1 {[%emt 0:00:05]} Rxd1+ {[%emt 0:00:02]} 24. Kf2 {[%emt 0:00:02]} Nb4 {[%emt 0:01:18]} 25. Kg3 {[%emt 0:00:45]} Rd5 {[%emt 0:01:18]} 26. a3 {[%emt 0:01:26]} Nd3 {[%emt 0:00:28]} 27. Rb1 {[%emt 0:00:37]} Re5 {[%emt 0:01:09]} 28. Nc3 {[%emt 0:00:24]} Rg5+ {[%emt 0:00:28]} 29. Kh2 {[%emt 0:00:10]} Nf4 {[%emt 0:00:25]} 30. Rb2 {[%emt 0:00:02]} Rc5 {[%emt 0:00:21]} 31. Ne4 {[%emt 0:00:06]} Rc6 {[%emt 0:00:21]} 32. b4 {[%emt 0:00:58]} f5 {[%emt 0:00:30]} 33. Nc5 {[%emt 0:00:25]} b6 {[%emt 0:00:18]} 34. Nb3 {[%emt 0:00:40]} Kf7 {[%emt 0:00:25]} 35. Nd4 {[%emt 0:00:03]} Rd6 {[%emt 0:00:04]} 36. Nb5 {[%emt 0:00:06]} Rd7 {[%emt 0:00:02]} 37. Rc2 {[%emt 0:00:13]} Nd5 {[%emt 0:00:26]} 38. Rb2 {[%emt 0:00:21]} e5 {[%emt 0:00:15]} 39. a4 {[%emt 0:00:02]} a6 {[%emt 0:00:04]} 40. Na3 {[%emt 0:00:01]} Rc7 {[%emt 0:00:08]} 41. Kg3 {[%emt 0:00:40]} Ke6 {[%emt 0:00:02]} 42. h4 {[%emt 0:01:37]} h6 {[%emt 0:00:16]} 43. Nc2 {[%emt 0:00:40]} Rc3 {[%emt 0:00:10]} 44. Kf2 {[%emt 0:00:57]} g5 {[%emt 0:00:01]} 45. hxg5 {[%emt 0:00:02]} hxg5 {[%emt 0:00:02]} 46. g3 {[%emt 0:00:16]} f4 {[%emt 0:00:05]} 47. gxf4 {[%emt 0:00:25]} gxf4 {[%emt 0:00:06]} 48. Ke2 {[%emt 0:00:21]} Ne3 {[%emt 0:00:26]} 49. Ne1 {[%emt 0:00:45]} Nc4 {[%emt 0:00:09]} 50. Ra2 {[%emt 0:00:24]} Kd5 {[%emt 0:00:10]} 51. Nc2 {[%emt 0:00:54]} Ne3 {[%emt 0:00:09]} 52. Na3 {[%emt 0:00:12]} Nc4 {[%emt 0:00:14]} 53. Nc2 {[%emt 0:00:11]} Rb3 {[%emt 0:00:06]} 54. Ra1 {[%emt 0:00:22]} Ne3 {[%emt 0:00:09]} 55. Ne1 {[%emt 0:00:45]} Kc4 {[%emt 0:00:07]} 56. Rc1+ {[%emt 0:00:11]} Kxb4 {[%emt 0:00:12]} 57. Ra1 {[%emt 0:00:11]} b5 {[%emt 0:00:22]} 58. axb5 {[%emt 0:00:02]} axb5 {[%emt 0:00:01]} 59. Nd3+ {[%emt 0:00:01]} Kc3 {[%emt 0:00:06]} 60. Rc1+ {[%emt 0:00:16]} Kd4 {[%emt 0:00:05]} 61. Rc8 {[%emt 0:00:15]} Rc3 {[%emt 0:00:16]} 62. Rd8+ {[%emt 0:00:01]} Nd5 {[%emt 0:00:01]} 63. Nb4 {[%emt 0:00:02]} Rc5 {[%emt 0:00:08]} 64. Na6 {[%emt 0:00:13]} Rc2+ {[%emt 0:00:07]} 65. Kd1 {[%emt 0:00:01]} Rc3 {[%emt 0:00:09]} 66. Nb4 {[%emt 0:00:09]} Rc5 {[%emt 0:00:09]} 67. Na6 {[%emt 0:00:10]} Rc3 {[%emt 0:00:16]} 68. Nb4 {[%emt 0:00:28]} Rc5 {[%emt 0:00:09]} 69. Na6 {[%emt 0:00:01]} Rc4 {[%emt 0:00:10]} 70. Kd2 {[%emt 0:00:10]} e4 {[%emt 0:00:05]} 71. fxe4 {[%emt 0:00:08]} Kxe4 {[%emt 0:00:02]} 72. Re8+ {[%emt 0:00:19]} Kf3 {[%emt 0:00:06]} 73. Re5 {[%emt 0:00:11]} Rd4+ {[%emt 0:00:09]} 74. Kc2 {[%emt 0:00:02]} Nb4+ {[%emt 0:00:11]} 75. Nxb4 {[%emt 0:00:18]} Rxb4 {[%emt 0:00:01]} 76. Kc3 {[%emt 0:00:01]} Rc4+ {[%emt 0:00:06]} 77. Kd3 {[%emt 0:00:01]} Rb4 {[%emt 0:00:04]} 78. Kc3 {[%emt 0:00:02]} Rb1 {[%emt 0:00:01]} 79. Kc2 {[%emt 0:00:00]} Ra1 {[%emt 0:00:10]} 80. Rxb5 {[%emt 0:00:04]} Kf2 {[%emt 0:00:08]} 81. Kd3 {[%emt 0:00:22]} Re1 {[%emt 0:00:12]} 82. Rb2+ {[%emt 0:00:04]} Kf1 {[%emt 0:00:17]} 83. Rh2 {[%emt 0:00:10]} f3 {[%emt 0:00:10]} 84. Rh1+ {[%emt 0:00:14]} Kf2 {[%emt 0:00:02]} 85. Rh8 {[%emt 0:00:03]} Rd1+ {[%emt 0:00:07]} 86. Kc2 {[%emt 0:00:17]} Rd7 {[%emt 0:00:04]} 87. Rf8 {[%emt 0:00:05]} Kg2 {[%emt 0:00:04]} 88. Rg8+ {[%emt 0:00:03]} Kf1 {[%emt 0:00:02]} 89. Rf8 {[%emt 0:00:04]} f2 {[%emt 0:00:01]} 90. Rf6 {[%emt 0:00:04]} Rd4 {[%emt 0:00:22]} 91. Kc3 {[%emt 0:00:07]} Rg4 {[%emt 0:00:08]} 92. Kd2 {[%emt 0:00:10]} Kg2 {[%emt 0:00:17]} 93. Ke2 {[%emt 0:00:01]} Re4+ {[%emt 0:00:05]} 94. Kd3 {[%emt 0:00:02]} Re1 {[%emt 0:00:05]} 95. Rg6+ {[%emt 0:00:07]} Kh3 {[%emt 0:00:01]} 96. Rh6+ {[%emt 0:00:04]} Kg4 {[%emt 0:00:02]} 0-1

[Event "Czech Open Rapid G1 2024"]
[Site "Pardubice"]
[Date "2024.07.18"]
[Round "4.26"]
[White "Soucek, Andrej"]
[Black "Freisler, Pavel"]
[Result "0-1"]
[Annotator "RC"]
[ECO "A45"]
[WhiteElo "1889"]
[BlackElo "2261"]
[PlyCount "70"]
[EventDate "2024.07.16"]
[EventType "swiss"]
[EventCountry "CZE"]
[SourceTitle "playchess.com"]
[Source "ChessBase"]
[SourceQuality "1"]
[TimeControl "1200+10"]

1. d4 {[%emt 0:00:02]} Nf6 {[%emt 0:00:03]} 2. Bg5 {[%emt 0:00:02]} d5 {[%emt 0:00:01]} 3. e3 {[%emt 0:00:02]} Ne4 {[%emt 0:00:25]} 4. Bf4 {[%emt 0:00:02]} Bf5 {[%emt 0:00:41]} 5. f3 {[%emt 0:00:49]} Nd6 {[%emt 0:00:07]} 6. g4 {[%emt 0:00:54]} Bg6 {[%emt 0:00:04]} 7. h4 {[%emt 0:00:02]} h5 {[%emt 0:00:02]} 8. Bd3 {[%emt 0:00:45]} Bxd3 {[%emt 0:00:40]} 9. Qxd3 {[%emt 0:00:03]} hxg4 {[%emt 0:00:02]} 10. fxg4 {[%emt 0:00:01]} e6 {[%emt 0:00:06]} 11. Nf3 {[%emt 0:00:19]} Be7 {[%emt 0:00:05]} 12. g5 {[%emt 0:00:23]} g6 {[%emt 0:02:37]} 13. Nbd2 {[%emt 0:02:10]} Nc6 {[%emt 0:01:04]} 14. O-O-O {[%emt 0:01:49]} Rh5 {[%emt 0:01:57]} 15. e4 {[%emt 0:01:04]} Qd7 {[%emt 0:05:03]} 16. Ne5 {[%emt 0:03:03]} Nxe5 {[%emt 0:00:29]} 17. dxe5 {[%emt 0:00:02]} Nc8 {[%emt 0:02:08]} 18. Nf1 {[%emt 0:02:24]} Nb6 {[%emt 0:00:09]} 19. Ng3 {[%emt 0:00:04]} Rh8 {[%emt 0:00:03]} 20. h5 {[%emt 0:00:25]} gxh5 {[%emt 0:00:03]} 21. g6 {[%emt 0:02:01]} fxg6 {[%emt 0:01:29]} 22. exd5 {[%emt 0:00:12]} O-O-O {[%emt 0:00:52]} 23. d6 {[%emt 0:01:42]} Qa4 {[%emt 0:00:02]} 24. Ne2 {[%emt 0:04:19]} cxd6 {[%emt 0:01:14]} 25. exd6 {[%emt 0:00:15]} Bf6 {[%emt 0:00:01]} 26. Qxg6 {[%emt 0:00:52]} Rhf8 {[%emt 0:01:02]} 27. d7+ {[%emt 0:00:40]} Rxd7 {[%emt 0:00:08]} 28. Kb1 {[%emt 0:00:09]} Qb5 {[%emt 0:01:21]} 29. c3 {[%emt 0:00:14]} Qxe2 {[%emt 0:00:08]} 30. Rxd7 {[%emt 0:00:09]} Nxd7 {[%emt 0:00:02]} 31. Rxh5 {[%emt 0:00:10]} Nc5 {[%emt 0:01:36]} 32. Rxc5+ {[%emt 0:00:04]} Kd8 {[%emt 0:00:16]} 33. Bc7+ {[%emt 0:00:05]} Kd7 {[%emt 0:00:10]} 34. Qh7+ {[%emt 0:00:03]} Be7 {[%emt 0:00:01]} 35. Bg3 {[%emt 0:00:29]} Rf1+ {[%emt 0:00:06]} 0-1

[Event "Czech Open Rapid G1 2024"]
[Site "Pardubice"]
[Date "2024.07.18"]
[Round "4.27"]
[White "Brendel, Oliver"]
[Black "Levytskyi, Liubomyr"]
[Result "1-0"]
[Annotator "RC"]
[ECO "A14"]
[WhiteElo "2291"]
[BlackElo "1717"]
[PlyCount "87"]
[EventDate "2024.07.16"]
[EventType "swiss"]
[EventCountry "CZE"]
[SourceTitle "playchess.com"]
[Source "ChessBase"]
[SourceQuality "1"]
[TimeControl "1200+10"]

1. c4 {[%emt 0:00:01]} Nf6 {[%emt 0:00:01]} 2. g3 {[%emt 0:00:03]} e6 {[%emt 0:00:02]} 3. Bg2 {[%emt 0:00:05]} d5 {[%emt 0:00:01]} 4. Nf3 {[%emt 0:00:03]} Be7 {[%emt 0:00:03]} 5. O-O {[%emt 0:00:07]} O-O {[%emt 0:00:03]} 6. b3 {[%emt 0:00:06]} d4 {[%emt 0:00:04]} 7. e3 {[%emt 0:00:02]} c5 {[%emt 0:00:01]} 8. exd4 {[%emt 0:00:04]} cxd4 {[%emt 0:00:01]} 9. d3 {[%emt 0:00:01]} Nc6 {[%emt 0:00:16]} 10. Re1 {[%emt 0:00:02]} a5 {[%emt 0:01:20]} 11. Na3 {[%emt 0:02:48]} h6 {[%emt 0:03:01]} 12. Nb5 {[%emt 0:00:10]} Bc5 {[%emt 0:01:01]} 13. Bb2 {[%emt 0:02:31]} Re8 {[%emt 0:00:48]} 14. Ne5 {[%emt 0:00:20]} Nxe5 {[%emt 0:00:32]} 15. Rxe5 {[%emt 0:00:02]} Nd7 {[%emt 0:00:01]} 16. Rxc5 {[%emt 0:00:42]} Nxc5 {[%emt 0:00:07]} 17. Bxd4 {[%emt 0:00:06]} Qe7 {[%emt 0:03:07]} 18. f4 {[%emt 0:02:46]} Rd8 {[%emt 0:01:59]} 19. Qe2 {[%emt 0:03:27]} Bd7 {[%emt 0:01:27]} 20. Qe5 {[%emt 0:00:56]} f6 {[%emt 0:03:16]} 21. Bxc5 {[%emt 0:02:05]} Qe8 {[%emt 0:00:42]} 22. Qe3 {[%emt 0:00:11]} Bxb5 {[%emt 0:00:19]} 23. cxb5 {[%emt 0:00:02]} Qxb5 {[%emt 0:00:56]} 24. Qxe6+ {[%emt 0:00:14]} Kh8 {[%emt 0:00:01]} 25. d4 {[%emt 0:00:59]} Re8 {[%emt 0:00:49]} 26. Qc4 {[%emt 0:00:54]} Qd7 {[%emt 0:00:23]} 27. Qd5 {[%emt 0:01:21]} Qb5 {[%emt 0:01:42]} 28. Qxb7 {[%emt 0:00:15]} Qe2 {[%emt 0:00:01]} 29. Qf3 {[%emt 0:00:47]} Qb2 {[%emt 0:00:20]} 30. Rd1 {[%emt 0:01:21]} Rac8 {[%emt 0:00:19]} 31. a3 {[%emt 0:00:41]} Re2 {[%emt 0:00:27]} 32. b4 {[%emt 0:00:18]} axb4 {[%emt 0:00:04]} 33. axb4 {[%emt 0:00:03]} Rce8 {[%emt 0:01:35]} 34. d5 {[%emt 0:00:29]} Qc2 {[%emt 0:00:20]} 35. Rf1 {[%emt 0:00:24]} Qd2 {[%emt 0:00:23]} 36. d6 {[%emt 0:00:10]} f5 {[%emt 0:00:15]} 37. Qd5 {[%emt 0:00:23]} Qc2 {[%emt 0:00:22]} 38. d7 {[%emt 0:00:09]} Rd8 {[%emt 0:00:01]} 39. Bf3 {[%emt 0:00:45]} Rxh2 {[%emt 0:00:17]} 40. Bb6 {[%emt 0:00:35]} Rd2 {[%emt 0:00:02]} 41. Bxd8 {[%emt 0:00:04]} Rxd5 {[%emt 0:00:05]} 42. Bxd5 {[%emt 0:00:01]} Qd3 {[%emt 0:00:24]} 43. Bb6 {[%emt 0:00:09]} Qxg3+ {[%emt 0:00:05]} 44. Bg2 {[%emt 0:00:02]} 1-0

[Event "Czech Open Rapid G1 2024"]
[Site "Pardubice"]
[Date "2024.07.18"]
[Round "4.28"]
[White "Fishchuk, Vladyslav"]
[Black "Kavalir, Jan"]
[Result "1-0"]
[Annotator "RC"]
[ECO "A00"]
[WhiteElo "2234"]
[BlackElo "1992"]
[PlyCount "74"]
[EventDate "2024.07.16"]
[EventType "swiss"]
[EventCountry "CZE"]
[SourceTitle "playchess.com"]
[Source "ChessBase"]
[SourceQuality "1"]
[TimeControl "1200+10"]

1. Nc3 {[%emt 0:00:02]} d5 {[%emt 0:00:04]} 2. e4 {[%emt 0:00:02]} d4 {[%emt 0:00:08]} 3. Nce2 {[%emt 0:00:01]} e5 {[%emt 0:00:04]} 4. c3 {[%emt 0:00:02]} c5 {[%emt 0:00:05]} 5. Ng3 {[%emt 0:00:01]} Nf6 {[%emt 0:00:26]} 6. Nf3 {[%emt 0:00:28]} Nc6 {[%emt 0:00:09]} 7. Bc4 {[%emt 0:00:08]} Bd6 {[%emt 0:00:35]} 8. d3 {[%emt 0:00:09]} O-O {[%emt 0:00:10]} 9. a4 {[%emt 0:00:02]} Na5 {[%emt 0:00:59]} 10. Ba2 {[%emt 0:00:10]} Qe7 {[%emt 0:00:53]} 11. Nh4 {[%emt 0:01:38]} g6 {[%emt 0:04:41]} 12. Bg5 {[%emt 0:00:40]} Qd8 {[%emt 0:01:27]} 13. O-O {[%emt 0:02:33]} Be6 {[%emt 0:02:18]} 14. f4 {[%emt 0:05:41]} exf4 {[%emt 0:01:09]} 15. Ne2 {[%emt 0:00:03]} Bxa2 {[%emt 0:01:58]} 16. Rxa2 {[%emt 0:00:02]} Be7 {[%emt 0:00:22]} 17. Nxf4 {[%emt 0:00:47]} Nxe4 {[%emt 0:01:24]} 18. Bxe7 {[%emt 0:00:23]} Qxe7 {[%emt 0:00:01]} 19. Qe1 {[%emt 0:00:33]} g5 {[%emt 0:03:18]} 20. Nf5 {[%emt 0:01:52]} Qe5 {[%emt 0:00:02]} 21. Nd5 {[%emt 0:00:15]} Rae8 {[%emt 0:00:49]} 22. dxe4 {[%emt 0:00:06]} Nc6 {[%emt 0:00:24]} 23. cxd4 {[%emt 0:01:11]} Nxd4 {[%emt 0:00:13]} 24. Nxd4 {[%emt 0:00:19]} Qxd4+ {[%emt 0:00:07]} 25. Qf2 {[%emt 0:00:08]} Kg7 {[%emt 0:01:02]} 26. Nc3 {[%emt 0:00:14]} Qxf2+ {[%emt 0:00:39]} 27. Rxf2 {[%emt 0:00:06]} Rd8 {[%emt 0:00:02]} 28. Ra1 {[%emt 0:00:32]} Rd4 {[%emt 0:00:01]} 29. Rf5 {[%emt 0:00:10]} Rd2 {[%emt 0:00:10]} 30. Rxg5+ {[%emt 0:00:23]} Kh6 {[%emt 0:00:04]} 31. Rxc5 {[%emt 0:00:15]} Rg8 {[%emt 0:00:10]} 32. g3 {[%emt 0:00:19]} Rxb2 {[%emt 0:00:08]} 33. Rd1 {[%emt 0:00:47]} Rg6 {[%emt 0:00:17]} 34. e5 {[%emt 0:00:23]} Rg4 {[%emt 0:00:08]} 35. Rd6+ {[%emt 0:00:23]} Kg7 {[%emt 0:00:06]} 36. Rc7 {[%emt 0:00:07]} Rgb4 {[%emt 0:00:30]} 37. e6 {[%emt 0:00:14]} R4b3 {[%emt 0:00:35]} 1-0